[Event "EUCC Open Blitz 2024"]
[Site "Miskolc"]
[Date "2024.07.13"]
[Round "9.9"]
[White "Medve, Mark"]
[Black "Gatineau, Yovann"]
[Result "0-1"]
[ECO "D30"]
[WhiteElo "2123"]
[BlackElo "2414"]
[PlyCount "86"]
[EventDate "2024.07.08"]
[EventType "team-tourn"]
[EventCountry "HUN"]
[TimeControl "1500+10"]

1. d4 {[%emt 0:22:17]} d5 {[%emt 0:22:16]} 2. c4 {[%emt 0:00:08]} e6 {[%emt 0:00:09]} 3. cxd5 {[%emt 0:00:09]} exd5 {[%emt 0:00:09]} 4. Nc3 {[%emt 0:00:09]} a6 {[%emt 0:00:09]} 5. Bf4 {[%emt 0:00:10]} Nf6 {[%emt 0:00:09]} 6. e3 {[%emt 0:00:09]} Bd6 {[%emt 0:00:08]} 7. Bxd6 {[%emt 0:00:10]} Qxd6 {[%emt 0:00:09]} 8. Bd3 {[%emt 0:00:09]} O-O {[%emt 0:00:12]} 9. Nge2 {[%emt 0:00:08]} c6 {[%emt 0:00:11]} 10. h3 {[%emt 0:00:10]} a5 {[%emt 0:00:13]} 11. O-O {[%emt 0:00:17]} Na6 {[%emt 0:00:10]} 12. Rc1 {[%emt 0:00:12]} Nc7 {[%emt 0:00:14]} 13. Nf4 {[%emt 0:00:18]} Ne6 {[%emt 0:00:12]} 14. Nxe6 {[%emt 0:00:11]} Bxe6 {[%emt 0:00:10]} 15. Qf3 {[%emt 0:00:17]} Rfe8 {[%emt 0:00:17]} 16. Rfd1 {[%emt 0:00:19]} Bd7 {[%emt 0:00:20]} 17. a3 {[%emt 0:00:17]} g6 {[%emt 0:00:14]} 18. Na4 {[%emt 0:00:13]} Kg7 {[%emt 0:00:14]} 19. Nc5 {[%emt 0:00:22]} Bc8 {[%emt 0:00:21]} 20. Rb1 {[%emt 0:00:31]} b6 {[%emt 0:00:18]} 21. Na4 {[%emt 0:00:09]} Rb8 {[%emt 0:00:46]} 22. b4 {[%emt 0:00:20]} axb4 {[%emt 0:00:10]} 23. axb4 {[%emt 0:00:12]} Bd7 {[%emt 0:00:22]} 24. Rdc1 {[%emt 0:00:14]} Rec8 {[%emt 0:00:21]} 25. Qe2 {[%emt 0:00:28]} h5 {[%emt 0:00:18]} 26. Qc2 {[%emt 0:00:18]} h4 {[%emt 0:00:14]} 27. Qb3 {[%emt 0:00:14]} g5 {[%emt 0:00:21]} 28. Nc3 {[%emt 0:00:25]} g4 {[%emt 0:00:11]} 29. hxg4 {[%emt 0:00:11]} Nxg4 {[%emt 0:00:10]} 30. Ne2 {[%emt 0:00:29]} Qh2+ {[%emt 0:00:13]} 31. Kf1 {[%emt 0:00:08]} h3 {[%emt 0:00:12]} 32. Nf4 {[%emt 0:00:31]} hxg2+ {[%emt 0:00:15]} 33. Nxg2 {[%emt 0:00:13]} Qh1+ {[%emt 0:00:10]} 34. Ke2 {[%emt 0:00:09]} Qxg2 {[%emt 0:00:09]} 35. Rf1 {[%emt 0:00:13]} Re8 {[%emt 0:00:10]} 36. Rbe1 {[%emt 0:00:17]} Rxe3+ {[%emt 0:00:12]} 37. Kd2 {[%emt 0:00:09]} Rxe1 {[%emt 0:00:11]} 38. Rxe1 {[%emt 0:00:09]} Qxf2+ {[%emt 0:00:10]} 39. Re2 {[%emt 0:00:08]} Qxd4 {[%emt 0:00:11]} 40. Qb1 {[%emt 0:00:10]} Re8 {[%emt 0:00:17]} 41. Rxe8 {[%emt 0:00:11]} Bxe8 {[%emt 0:00:08]} 42. Qf1 {[%emt 0:00:10]} Qxb4+ {[%emt 0:00:12]} 43. Kd1 {[%emt 0:00:08]} Ne3+ {[%emt 0:00:09]} 0-1

[Event "EUCC Open Blitz 2024"]
[Site "Miskolc"]
[Date "2024.07.13"]
[Round "9.10"]
[White "Houhou, Alexandre"]
[Black "Kovacs, Gabor Etele"]
[Result "1/2-1/2"]
[ECO "C95"]
[WhiteElo "2148"]
[BlackElo "2109"]
[PlyCount "96"]
[EventDate "2024.07.08"]
[EventType "team-tourn"]
[EventCountry "HUN"]
[TimeControl "1500+10"]

1. e4 e5 {[%emt 0:22:17]} 2. Nf3 {[%emt 0:22:25]} Nc6 {[%emt 0:00:09]} 3. Bb5 {[%emt 0:00:08]} a6 {[%emt 0:00:09]} 4. Ba4 {[%emt 0:00:09]} Nf6 {[%emt 0:00:08]} 5. O-O Be7 6. Re1 {[%emt 0:00:20]} b5 {[%emt 0:00:19]} 7. Bb3 {[%emt 0:00:09]} d6 {[%emt 0:00:09]} 8. c3 {[%emt 0:00:09]} O-O 9. h3 Nb8 {[%emt 0:00:22]} 10. d4 {[%emt 0:00:17]} Nbd7 {[%emt 0:00:10]} 11. c4 {[%emt 0:00:09]} Bb7 {[%emt 0:00:16]} 12. Nc3 {[%emt 0:00:23]} c6 {[%emt 0:00:28]} 13. a3 {[%emt 0:00:23]} Qc7 {[%emt 0:00:15]} 14. Qc2 {[%emt 0:00:20]} Rfe8 {[%emt 0:00:35]} 15. Ne2 {[%emt 0:00:12]} exd4 16. Nexd4 c5 {[%emt 0:00:36]} 17. Nf5 {[%emt 0:00:19]} Bf8 {[%emt 0:00:09]} 18. cxb5 {[%emt 0:00:28]} Bxe4 {[%emt 0:00:18]} 19. Bxf7+ {[%emt 0:00:50]} Kxf7 {[%emt 0:00:13]} 20. Ng5+ {[%emt 0:00:10]} Kg8 {[%emt 0:00:36]} 21. Nxe4 {[%emt 0:00:09]} axb5 {[%emt 0:00:31]} 22. Bf4 {[%emt 0:00:19]} Nxe4 {[%emt 0:00:14]} 23. Rxe4 {[%emt 0:00:08]} Nf6 {[%emt 0:00:08]} 24. Rxe8 {[%emt 0:00:14]} Rxe8 {[%emt 0:00:09]} 25. Qb3+ {[%emt 0:00:09]} c4 {[%emt 0:00:21]} 26. Qxb5 {[%emt 0:00:09]} Rb8 {[%emt 0:00:14]} 27. Qa6 {[%emt 0:00:18]} Rxb2 {[%emt 0:00:16]} 28. Nxd6 {[%emt 0:00:32]} Qc5 {[%emt 0:00:17]} 29. Qxc4+ {[%emt 0:00:13]} Qxc4 {[%emt 0:00:17]} 30. Nxc4 {[%emt 0:00:09]} Bc5 {[%emt 0:00:10]} 31. Be3 {[%emt 0:00:20]} Rc2 {[%emt 0:00:10]} 32. Bxc5 {[%emt 0:00:13]} Rxc4 {[%emt 0:00:09]} 33. Be3 {[%emt 0:00:11]} Ra4 {[%emt 0:00:10]} 34. Bc5 {[%emt 0:00:10]} Ne4 {[%emt 0:00:10]} 35. Bb4 {[%emt 0:00:12]} Kf7 {[%emt 0:00:09]} 36. Re1 {[%emt 0:00:17]} Nf6 {[%emt 0:00:09]} 37. Re7+ {[%emt 0:00:12]} Kg6 {[%emt 0:00:08]} 38. g4 {[%emt 0:00:13]} h5 {[%emt 0:00:09]} 39. gxh5+ {[%emt 0:00:13]} Nxh5 {[%emt 0:00:09]} 40. Re6+ {[%emt 0:00:12]} Kf5 {[%emt 0:00:10]} 41. Re7 {[%emt 0:00:17]} g6 {[%emt 0:00:12]} 42. Rb7 {[%emt 0:00:15]} Nf4 {[%emt 0:00:09]} 43. Rf7+ {[%emt 0:00:10]} Ke4 {[%emt 0:00:11]} 44. Kh2 {[%emt 0:00:11]} Ra8 {[%emt 0:00:12]} 45. Re7+ {[%emt 0:00:09]} Kf5 {[%emt 0:00:08]} 46. Rf7+ {[%emt 0:00:10]} Ke4 {[%emt 0:00:09]} 47. Re7+ {[%emt 0:00:10]} Kf5 {[%emt 0:00:10]} 48. Rf7+ {[%emt 0:00:10]} Ke5 1/2-1/2

[Event "EUCC Open Blitz 2024"]
[Site "Miskolc"]
[Date "2024.07.13"]
[Round "9.11"]
[White "Spanjer, Joris"]
[Black "Muha, Miljenko"]
[Result "0-1"]
[ECO "D37"]
[WhiteElo "1855"]
[BlackElo "2245"]
[PlyCount "52"]
[EventDate "2024.07.08"]
[EventType "team-tourn"]
[EventCountry "HUN"]
[TimeControl "1500+10"]

1. d4 {[%emt 0:22:18]} d5 {[%emt 0:22:17]} 2. c4 {[%emt 0:00:10]} e6 {[%emt 0:00:12]} 3. Nf3 {[%emt 0:00:10]} Nf6 {[%emt 0:00:09]} 4. Nc3 {[%emt 0:00:09]} a6 {[%emt 0:00:11]} 5. e3 {[%emt 0:00:13]} dxc4 {[%emt 0:00:12]} 6. Bxc4 {[%emt 0:00:11]} b5 {[%emt 0:00:10]} 7. Bd3 {[%emt 0:00:10]} Bb7 {[%emt 0:00:09]} 8. O-O {[%emt 0:00:14]} c5 {[%emt 0:00:09]} 9. dxc5 {[%emt 0:00:23]} Nbd7 {[%emt 0:00:10]} 10. Qe2 {[%emt 0:00:20]} Nxc5 {[%emt 0:00:17]} 11. Bc2 {[%emt 0:00:14]} Be7 {[%emt 0:00:13]} 12. b4 {[%emt 0:00:21]} Nce4 {[%emt 0:00:19]} 13. Nxe4 {[%emt 0:00:35]} Nxe4 {[%emt 0:00:10]} 14. Bxe4 {[%emt 0:00:39]} Bxe4 {[%emt 0:00:11]} 15. a3 {[%emt 0:00:08]} Bd3 {[%emt 0:00:14]} 16. Qa2 {[%emt 0:00:35]} Bxf1 {[%emt 0:00:15]} 17. Kxf1 {[%emt 0:00:10]} Rc8 {[%emt 0:00:37]} 18. Bd2 {[%emt 0:00:25]} Qd3+ {[%emt 0:00:15]} 19. Ke1 {[%emt 0:00:09]} Bf6 {[%emt 0:00:15]} 20. Rd1 {[%emt 0:00:12]} O-O {[%emt 0:00:15]} 21. a4 {[%emt 0:00:23]} Rfd8 {[%emt 0:00:11]} 22. axb5 {[%emt 0:00:20]} axb5 {[%emt 0:00:10]} 23. Qa5 {[%emt 0:00:19]} Bc3 {[%emt 0:00:13]} 24. h3 {[%emt 0:00:14]} Bxd2+ {[%emt 0:00:13]} 25. Rxd2 {[%emt 0:00:10]} Rc1+ {[%emt 0:00:11]} 26. Rd1 {[%emt 0:00:08]} Qxd1# {[%emt 0:00:10]} 0-1

[Event "EUCC Open Blitz 2024"]
[Site "Miskolc"]
[Date "2024.07.13"]
[Round "9.13"]
[White "Veiga, Jose Francisco R P N"]
[Black "Jellema, Pieter"]
[Result "1-0"]
[ECO "B10"]
[WhiteElo "2385"]
[BlackElo "2006"]
[PlyCount "83"]
[EventDate "2024.07.08"]
[EventType "team-tourn"]
[EventCountry "HUN"]
[TimeControl "1500+10"]

1. e4 c6 2. Nf3 {[%emt 0:22:29]} d5 {[%emt 0:22:25]} 3. Nc3 {[%emt 0:00:10]} dxe4 {[%emt 0:00:08]} 4. Nxe4 Nf6 5. Qe2 {[%emt 0:00:20]} Nxe4 {[%emt 0:00:18]} 6. Qxe4 Nd7 7. Bc4 {[%emt 0:00:22]} Nf6 {[%emt 0:00:17]} 8. Ne5 {[%emt 0:00:10]} e6 {[%emt 0:00:09]} 9. Qe2 {[%emt 0:00:10]} b5 {[%emt 0:00:09]} 10. Bb3 {[%emt 0:00:09]} Bd6 {[%emt 0:00:25]} 11. d4 {[%emt 0:00:11]} Qc7 {[%emt 0:00:11]} 12. O-O {[%emt 0:00:13]} O-O {[%emt 0:00:09]} 13. c3 {[%emt 0:00:10]} a5 {[%emt 0:00:09]} 14. Bc2 {[%emt 0:00:11]} c5 {[%emt 0:00:14]} 15. Bf4 {[%emt 0:00:15]} Bb7 {[%emt 0:00:28]} 16. Bg3 {[%emt 0:00:11]} Rac8 {[%emt 0:00:10]} 17. Rac1 {[%emt 0:00:11]} Rfd8 {[%emt 0:00:13]} 18. Qxb5 {[%emt 0:00:13]} Ra8 {[%emt 0:00:48]} 19. Rfd1 {[%emt 0:00:27]} Ba6 {[%emt 0:00:13]} 20. Qc6 {[%emt 0:00:11]} Nd5 {[%emt 0:00:34]} 21. Qxc7 {[%emt 0:00:20]} Bxc7 {[%emt 0:00:15]} 22. dxc5 {[%emt 0:00:14]} Rab8 {[%emt 0:00:09]} 23. Nc6 {[%emt 0:00:11]} Bxg3 {[%emt 0:00:17]} 24. hxg3 {[%emt 0:00:11]} Rdc8 {[%emt 0:00:12]} 25. Nxb8 {[%emt 0:00:10]} Rxb8 {[%emt 0:00:09]} 26. Be4 {[%emt 0:00:18]} Nf6 {[%emt 0:00:19]} 27. Bf3 {[%emt 0:00:12]} g6 {[%emt 0:00:10]} 28. Rd6 {[%emt 0:00:15]} Bc4 {[%emt 0:00:13]} 29. b3 {[%emt 0:00:10]} Bd5 {[%emt 0:00:09]} 30. c4 {[%emt 0:00:11]} Bxf3 {[%emt 0:00:12]} 31. gxf3 {[%emt 0:00:10]} Rc8 {[%emt 0:00:09]} 32. c6 {[%emt 0:00:21]} Ne8 {[%emt 0:00:11]} 33. Rd7 {[%emt 0:00:13]} Rxc6 {[%emt 0:00:10]} 34. Rcd1 {[%emt 0:00:09]} Kg7 {[%emt 0:00:09]} 35. Ra7 {[%emt 0:00:10]} Rc5 {[%emt 0:00:10]} 36. Rdd7 {[%emt 0:00:11]} Rf5 {[%emt 0:00:14]} 37. Kg2 {[%emt 0:00:09]} h5 {[%emt 0:00:15]} 38. a3 {[%emt 0:00:11]} g5 {[%emt 0:00:10]} 39. b4 {[%emt 0:00:09]} axb4 {[%emt 0:00:11]} 40. axb4 {[%emt 0:00:09]} g4 {[%emt 0:00:09]} 41. fxg4 {[%emt 0:00:10]} hxg4 {[%emt 0:00:10]} 42. Ra5 {[%emt 0:00:13]} 1-0

[Event "EUCC Open Blitz 2024"]
[Site "Miskolc"]
[Date "2024.07.13"]
[Round "9.14"]
[White "Broersma, Sven"]
[Black "Ribeiro, Rodrigo"]
[Result "0-1"]
[ECO "D35"]
[WhiteElo "1945"]
[BlackElo "2181"]
[PlyCount "38"]
[EventDate "2024.07.08"]
[EventType "team-tourn"]
[EventCountry "HUN"]
[TimeControl "1500+10"]

1. d4 {[%emt 0:22:17]} d5 {[%emt 0:22:17]} 2. c4 {[%emt 0:00:09]} e6 {[%emt 0:00:09]} 3. Nc3 {[%emt 0:00:09]} Nf6 {[%emt 0:00:09]} 4. cxd5 exd5 {[%emt 0:00:09]} 5. Bg5 {[%emt 0:00:17]} Be7 {[%emt 0:00:10]} 6. e3 {[%emt 0:00:09]} c6 {[%emt 0:00:09]} 7. Bd3 {[%emt 0:00:09]} O-O {[%emt 0:00:16]} 8. Qc2 {[%emt 0:00:09]} Nbd7 {[%emt 0:00:09]} 9. h3 {[%emt 0:00:15]} Re8 {[%emt 0:00:10]} 10. Nf3 {[%emt 0:00:09]} Nf8 {[%emt 0:00:10]} 11. O-O {[%emt 0:00:12]} g6 {[%emt 0:00:11]} 12. Rab1 {[%emt 0:00:22]} Ne6 {[%emt 0:00:10]} 13. Bh4 {[%emt 0:00:12]} Ng7 {[%emt 0:00:10]} 14. b4 {[%emt 0:00:19]} a6 {[%emt 0:00:08]} 15. a4 {[%emt 0:00:09]} Bf5 {[%emt 0:00:09]} 16. b5 {[%emt 0:00:17]} cxb5 {[%emt 0:00:20]} 17. axb5 {[%emt 0:00:10]} a5 {[%emt 0:00:08]} 18. b6 {[%emt 0:00:33]} Rc8 {[%emt 0:00:13]} 19. Qb3 {[%emt 0:00:18]} Bxd3 0-1

[Event "EUCC Open Blitz 2024"]
[Site "Miskolc"]
[Date "2024.07.13"]
[Round "9.15"]
[White "Budak, Rewi"]
[Black "Schiopu, Andreea-Alexandra"]
[Result "0-1"]
[ECO "B01"]
[WhiteElo "2100"]
[BlackElo "1829"]
[PlyCount "39"]
[EventDate "2024.07.08"]
[EventType "team-tourn"]
[EventCountry "HUN"]
[TimeControl "1500+10"]

1. e4 {[%emt 0:22:19]} d5 {[%emt 0:22:16]} 2. Nc3 {[%emt 0:00:11]} dxe4 {[%emt 0:00:10]} 3. Nxe4 {[%emt 0:00:09]} Bf5 {[%emt 0:00:09]} 4. Ng3 {[%emt 0:00:18]} Bg6 {[%emt 0:00:09]} 5. d4 {[%emt 0:00:14]} e6 {[%emt 0:00:11]} 6. Nh3 {[%emt 0:00:10]} h6 {[%emt 0:00:15]} 7. Nf4 {[%emt 0:00:50]} Bh7 {[%emt 0:00:10]} 8. Bc4 {[%emt 0:00:10]} Nf6 {[%emt 0:00:31]} 9. O-O {[%emt 0:00:11]} Bd6 {[%emt 0:00:12]} 10. Nxe6 {[%emt 0:00:22]} fxe6 {[%emt 0:00:18]} 11. Bxe6 {[%emt 0:00:17]} Ke7 {[%emt 0:00:33]} 12. Re1 {[%emt 0:00:12]} Re8 {[%emt 0:00:20]} 13. Bd5+ {[%emt 0:00:18]} Kf8 {[%emt 0:00:13]} 14. Bxb7 {[%emt 0:00:10]} Nbd7 {[%emt 0:00:16]} 15. Bxa8 {[%emt 0:00:34]} Qxa8 {[%emt 0:00:10]} 16. c3 {[%emt 0:00:15]} Ne4 {[%emt 0:00:40]} 17. Qf3+ {[%emt 0:00:33]} Ndf6 {[%emt 0:00:11]} 18. Bf4 {[%emt 0:00:13]} Qb8 {[%emt 0:00:45]} 19. Bxh6 {[%emt 0:00:19]} Bxg3 {[%emt 0:00:28]} 20. Rxe4 0-1

[Event "EUCC Open Blitz 2024"]
[Site "Miskolc"]
[Date "2024.07.13"]
[Round "9.16"]
[White "Panait, Robert-Florentin"]
[Black "Delpech, Anthony"]
[Result "0-1"]
[ECO "B33"]
[WhiteElo "1696"]
[BlackElo "1877"]
[PlyCount "94"]
[EventDate "2024.07.08"]
[EventType "team-tourn"]
[EventCountry "HUN"]
[TimeControl "1500+10"]

1. e4 {[%emt 0:22:17]} c5 {[%emt 0:22:16]} 2. Nf3 {[%emt 0:00:09]} Nc6 {[%emt 0:00:09]} 3. d4 {[%emt 0:00:08]} cxd4 {[%emt 0:00:09]} 4. Nxd4 {[%emt 0:00:09]} Nf6 {[%emt 0:00:09]} 5. Nc3 {[%emt 0:00:09]} e5 {[%emt 0:00:08]} 6. Nf3 {[%emt 0:00:12]} Bb4 {[%emt 0:00:09]} 7. Bd2 {[%emt 0:00:09]} d5 {[%emt 0:00:09]} 8. exd5 {[%emt 0:00:12]} Nxd5 {[%emt 0:00:10]} 9. Bc4 {[%emt 0:00:09]} Nxc3 {[%emt 0:00:10]} 10. Bxc3 {[%emt 0:00:09]} Qxd1+ {[%emt 0:00:10]} 11. Rxd1 {[%emt 0:00:10]} Bxc3+ {[%emt 0:00:09]} 12. bxc3 {[%emt 0:00:08]} O-O {[%emt 0:00:10]} 13. O-O {[%emt 0:00:10]} Bg4 {[%emt 0:00:10]} 14. h3 {[%emt 0:00:10]} Bxf3 {[%emt 0:00:11]} 15. gxf3 {[%emt 0:00:09]} Rfd8 {[%emt 0:00:09]} 16. Bb3 {[%emt 0:00:14]} Kf8 {[%emt 0:00:12]} 17. Kg2 {[%emt 0:00:11]} Ke7 {[%emt 0:00:12]} 18. Rde1 {[%emt 0:00:11]} Kf6 {[%emt 0:00:16]} 19. c4 {[%emt 0:00:15]} a5 {[%emt 0:00:22]} 20. c3 {[%emt 0:00:10]} a4 {[%emt 0:00:13]} 21. Bc2 {[%emt 0:00:15]} Rd2 {[%emt 0:00:11]} 22. Bb1 {[%emt 0:00:12]} Rad8 {[%emt 0:00:17]} 23. Kg3 {[%emt 0:00:22]} Na5 {[%emt 0:00:11]} 24. c5 {[%emt 0:00:12]} Rc8 {[%emt 0:00:33]} 25. f4 {[%emt 0:00:10]} exf4+ 26. Kxf4 {[%emt 0:00:09]} Rxc5 {[%emt 0:00:22]} 27. Re3 {[%emt 0:00:21]} Nc4 {[%emt 0:00:31]} 28. Rg3 {[%emt 0:00:12]} Na3 {[%emt 0:00:38]} 29. Be4 {[%emt 0:00:15]} b6 {[%emt 0:00:09]} 30. Rfg1 {[%emt 0:00:20]} g6 {[%emt 0:00:10]} 31. f3 {[%emt 0:00:25]} Rxc3 {[%emt 0:00:12]} 32. h4 {[%emt 0:00:35]} h5 {[%emt 0:00:19]} 33. Re1 {[%emt 0:00:26]} Rxa2 {[%emt 0:00:22]} 34. Rd1 {[%emt 0:00:19]} Nc4 {[%emt 0:00:15]} 35. Bd5 {[%emt 0:00:11]} Rd2 {[%emt 0:00:19]} 36. Rxd2 {[%emt 0:00:22]} Nxd2 {[%emt 0:00:09]} 37. Rg1 {[%emt 0:00:15]} b5 {[%emt 0:00:15]} 38. Rd1 {[%emt 0:00:11]} Nc4 {[%emt 0:00:11]} 39. Be4 {[%emt 0:00:14]} a3 {[%emt 0:00:13]} 40. Ra1 {[%emt 0:00:18]} b4 {[%emt 0:00:09]} 41. Bd5 {[%emt 0:00:16]} Nb6 {[%emt 0:00:11]} 42. Be4 {[%emt 0:00:12]} Nd7 {[%emt 0:00:10]} 43. Rd1 {[%emt 0:00:12]} Nc5 {[%emt 0:00:08]} 44. Bb1 {[%emt 0:00:18]} b3 {[%emt 0:00:10]} 45. Rd6+ {[%emt 0:00:11]} Ke7 {[%emt 0:00:09]} 46. Rb6 {[%emt 0:00:15]} a2 {[%emt 0:00:09]} 47. Bxa2 bxa2 {[%emt 0:00:11]} 0-1